fUST/lending_fUST_20250901
["ID","MTS","AMOUNT","RATE_DAILY","PERIOD"]
[382656560,1756697453312,-5044.54,0.00016474,2]
[382656561,1756697453324,-769.32,0.00016474,2]
[382656562,1756697453333,-480.0,0.00016474,2]
[382656563,1756697453342,-480.0,0.00016474,2]
[382656564,1756697453355,-1188.9,0.00016474,2]
[382656565,1756697453365,-2015.06,0.00016474,2]
[382656566,1756697453374,-480.0,0.00016474,2]
[382656567,1756697453383,-2175.63,0.00016474,2]
[382656568,1756697453395,-480.0,0.00016474,2]
[382656569,1756697453404,-480.0,0.00016474,2]
[382656570,1756697453415,-1247.75,0.00016474,2]
[382656571,1756697453425,-561.74,0.00016474,2]
[382656572,1756697453439,-696.36,0.00016474,2]
[382656573,1756697453448,-480.0,0.00016474,2]
[382656574,1756697453458,-480.0,0.00016474,2]
[382656575,1756697453467,-480.0,0.00016474,2]
[382656576,1756697453476,-480.0,0.00016474,2]
[382656577,1756697453486,-480.0,0.00016474,2]
[382656578,1756697453495,-480.0,0.00016474,2]
[382656579,1756697453505,-1886.35,0.00016474,2]
[382656580,1756697453515,-480.0,0.00016474,2]
[382656581,1756697453525,-480.0,0.00016474,2]
[382656582,1756697453534,-722.13,0.00016474,2]
[382656583,1756697453544,-914.71,0.00016474,2]
[382656584,1756697453553,-480.0,0.00016474,2]
[382656585,1756697453563,-480.0,0.00016474,2]
[382656586,1756697453574,-480.0,0.00016474,2]
[382656587,1756697453584,-480.0,0.00016474,2]
[382656588,1756697453594,-1215.89,0.00016474,2]
[382656589,1756697453603,-480.0,0.00016474,2]
[382656590,1756697453613,-586.82,0.00016474,2]
[382656591,1756697453622,-480.0,0.00016474,2]
[382656592,1756697453631,-480.0,0.00016474,2]
[382656593,1756697453641,-1250.9,0.00016474,2]
[382656594,1756697453651,-480.0,0.00016474,2]
[382656595,1756697453660,-480.0,0.00016474,2]
[382656596,1756697453670,-480.0,0.00016474,2]
[382656597,1756697453679,-594.58,0.00016474,2]
[382656598,1756697453689,-1298.18,0.00016474,2]
[382656599,1756697453698,-698.4,0.00016474,2]
[382656600,1756697453708,-480.0,0.00016474,2]
[382656601,1756697453717,-480.0,0.00016474,2]
[382656602,1756697453726,-480.0,0.00016474,2]
[382656603,1756697453735,-797.01,0.00016474,2]
[382656604,1756697453746,-480.0,0.00016474,2]
[382656605,1756697453755,-1470.01,0.00016474,2]
[382656606,1756697453765,-940.96,0.00016474,2]
[382656607,1756697453774,-1122.86,0.00016474,2]
[382656608,1756697453784,-480.0,0.00016474,2]
[382656609,1756697453793,-480.0,0.00016474,2]
[382656610,1756697453802,-481.71634681,0.00016474,2]
[382656611,1756697453812,-689.62,0.00016474,2]
[382656612,1756697453822,-480.0,0.00016474,2]
[382656613,1756697453831,-480.0,0.00016474,2]
[382656614,1756697453841,-809.34,0.00016474,2]
[382656615,1756697453850,-480.0,0.00016474,2]
[382656616,1756697453862,-174.66043634,0.00016475,2]
[382656617,1756697453871,-776.62326736,0.00016475,2]
[382656618,1756697453880,-695.0,0.00016488,2]
[382656619,1756697453890,-695.0,0.0001649,2]
[382656620,1756697453899,-2000.0,0.000165,2]
[382656621,1756697453909,-151.0,0.000165,2]
[382656622,1756697453918,-151.0,0.000165,2]
[382656623,1756697453928,-151.0,0.000165,2]
[382656624,1756697453937,-151.0,0.000165,2]
[382656625,1756697453946,-151.0,0.000165,2]
[382656626,1756697453955,-151.0,0.000165,2]
[382656627,1756697453965,-695.0,0.00016536,2]
[382656628,1756697453975,-409.94293439,0.00016573,2]
[382656629,1756697453984,-500.0,0.00016573,2]
[382656630,1756697453993,-500.0,0.00016573,2]
[382656631,1756697454002,-500.0,0.00016573,2]
[382656632,1756697454012,-500.0,0.00016573,2]
[382656633,1756697454021,-500.0,0.00016573,2]
[382656634,1756697454030,-480.0,0.00016573,2]
[382656635,1756697454039,-500.0,0.00016574,2]
[382656636,1756697454049,-480.0,0.00016574,2]
[382656637,1756697454058,-480.0,0.00016574,2]
[382656638,1756697454068,-697.49,0.00016574,2]
[382656639,1756697454077,-483.49,0.00016574,2]
[382656640,1756697454086,-480.0,0.00016574,2]
[382656641,1756697454096,-480.0,0.00016574,2]
[382656642,1756697454105,-985.99,0.00016574,2]
[382656643,1756697454115,-480.0,0.00016574,2]
[382656644,1756697454124,-480.0,0.00016574,2]
[382656645,1756697454133,-902.32,0.00016574,2]
[382656646,1756697454143,-1001.45,0.00016574,2]
[382656647,1756697454152,-480.0,0.00016574,2]
[382656648,1756697454162,-965.68,0.00016574,2]
[382656649,1756697454171,-480.0,0.00016574,2]
[382656650,1756697454181,-894.88,0.00016574,2]
[382656651,1756697454191,-480.0,0.00016574,2]
[382656652,1756697454201,-480.0,0.00016574,2]
[382656653,1756697454211,-480.0,0.00016574,2]
[382656654,1756697454220,-480.0,0.00016574,2]
[382656655,1756697454230,-480.0,0.00016574,2]
[382656656,1756697454239,-871.48,0.00016574,2]
[382656657,1756697454249,-480.0,0.00016574,2]
[382656658,1756697454259,-639.83,0.00016574,2]
[382656659,1756697454268,-982.08,0.00016574,2]
[382656660,1756697454278,-480.0,0.00016574,2]
[382656661,1756697454287,-789.84,0.00016574,2]
[382656662,1756697454298,-480.0,0.00016574,2]
[382656663,1756697454307,-613.6,0.00016574,2]
[382656664,1756697454318,-886.05,0.00016574,2]
[382656665,1756697454327,-3330.76,0.00016574,2]
[382656666,1756697454337,-1190.84,0.00016574,2]
[382656667,1756697454347,-480.0,0.00016574,2]
[382656668,1756697454356,-984.82,0.00016574,2]
[382656669,1756697454366,-480.0,0.00016574,2]
[382656670,1756697454376,-1921.7,0.00016574,2]
[382656671,1756697454386,-480.0,0.00016574,2]
[382656672,1756697454396,-480.0,0.00016574,2]
[382656673,1756697454406,-1701.64,0.00016574,2]
[382656674,1756697454416,-1072.03,0.00016574,2]
[382656675,1756697454426,-635.1,0.00016574,2]
[382656676,1756697454441,-624.57,0.00016574,2]
[382656677,1756697454451,-521.28,0.00016574,2]
[382656678,1756697454460,-1239.94,0.00016574,2]
[382656679,1756697454471,-1200.98,0.00016574,2]
[382656680,1756697454481,-674.81,0.00016574,2]
[382656681,1756697454490,-284.95,0.00016574,2]
[382656682,1756697454501,-480.0,0.00016574,2]
[382656683,1756697454515,-480.0,0.00016575,2]
[382656684,1756697454526,-480.0,0.00016575,2]
[382656685,1756697454536,-480.0,0.00016575,2]
[382656686,1756697454546,-480.0,0.00016575,2]
[382656687,1756697454556,-480.0,0.00016575,2]
[382656688,1756697454565,-627.07,0.00016575,2]
[382656689,1756697454575,-480.0,0.00016575,2]
[382656690,1756697454585,-480.0,0.00016575,2]
[382656691,1756697454594,-480.0,0.00016575,2]
[382656692,1756697454604,-522.12,0.00016575,2]
[382656693,1756697454614,-305.10314767,0.00016575,2]
[382656694,1756697454625,-480.18,0.00016575,2]
[382656695,1756697454634,-480.0,0.00016575,2]
[382656696,1756697454643,-480.0,0.00016575,2]
[382656697,1756697454653,-480.0,0.00016575,2]
[382656698,1756697454663,-480.0,0.00016575,2]
[382656699,1756697454672,-482.3,0.00016575,2]
[382656700,1756697454682,-480.0,0.00016575,2]
[382656701,1756697454691,-480.0,0.00016575,2]
[382656702,1756697454701,-480.0,0.00016575,2]
[382656703,1756697454710,-480.0,0.00016575,2]
[382656704,1756697454720,-480.0,0.00016575,2]
[382656705,1756697454729,-524.18,0.00016575,2]
[382656706,1756697454739,-480.0,0.00016575,2]
[382656707,1756697454748,-480.0,0.00016575,2]
[382656708,1756697454758,-480.0,0.00016575,2]
[382656709,1756697454767,-480.0,0.00016575,2]
[382656710,1756697454776,-1010.9,0.00016575,2]
[382656711,1756697454786,-785.5,0.00016575,2]
[382656712,1756697454795,-991.74,0.00016575,2]
[382656714,1756697454805,-480.0,0.00016575,2]
[382656716,1756697454814,-480.0,0.00016575,2]
[382656718,1756697454825,-480.0,0.00016575,2]
[382656720,1756697454835,-480.0,0.00016575,2]
[382656722,1756697454844,-480.0,0.00016575,2]
[382656724,1756697454854,-1114.3,0.00016575,2]
[382656725,1756697454863,-1074.11,0.00016575,2]
[382656727,1756697454872,-554.73,0.00016575,2]
[382656728,1756697454882,-500.44,0.00016575,2]
[382656729,1756697454891,-480.0,0.00016575,2]
[382656730,1756697454901,-480.0,0.00016575,2]
[382656732,1756697454911,-480.0,0.00016575,2]
[382656734,1756697454920,-480.0,0.00016575,2]
[382656736,1756697454930,-480.0,0.00016575,2]
[382656737,1756697454940,-480.0,0.00016575,2]
[382656738,1756697454950,-480.0,0.00016575,2]
[382656739,1756697454959,-480.0,0.00016575,2]
[382656740,1756697454969,-597.88,0.00016575,2]
[382656741,1756697454979,-541.03,0.00016575,2]
[382656742,1756697454989,-668.84,0.00016575,2]
[382656743,1756697454999,-637.78,0.00016575,2]
[382656744,1756697455009,-480.0,0.00016575,2]
[382656745,1756697455018,-630.94,0.00016575,2]
[382656746,1756697455030,-480.0,0.00016575,2]
[382656747,1756697455040,-480.0,0.00016575,2]
[382656748,1756697455050,-480.0,0.00016575,2]
[382656749,1756697455061,-480.0,0.00016575,2]
[382656750,1756697455072,-480.0,0.00016575,2]
[382656751,1756697455082,-345.41,0.00016575,2]
[382656752,1756697455091,-480.0,0.00016575,2]
[382656753,1756697455101,-480.0,0.00016575,2]
[382656754,1756697455111,-591.96021485,0.00016575,2]
[382656755,1756697455120,-480.0,0.00016575,2]
[382656756,1756697455130,-480.0,0.00016575,2]
[382656757,1756697455140,-418.73002565,0.00016575,2]
[382656758,1756697455149,-480.0,0.00016575,2]
[382656759,1756697455159,-520.81,0.00016575,2]
[382656760,1756697455169,-480.0,0.00016575,2]
[382656761,1756697455179,-916.97,0.00016575,2]
[382656762,1756697455188,-480.0,0.00016575,2]
[382656763,1756697455197,-480.0,0.00016575,2]
[382656764,1756697455207,-618.43,0.00016575,2]
[382656765,1756697455216,-480.0,0.00016575,2]
[382656766,1756697455227,-481.97117126,0.00016575,2]
[382656767,1756697455236,-953.24,0.00016575,2]
[382656768,1756697455246,-879.08,0.00016575,2]
[382656769,1756697455255,-480.0,0.00016575,2]
[382656770,1756697455265,-480.0,0.00016575,2]
[382656771,1756697455275,-480.0,0.00016575,2]
[382656772,1756697455285,-480.0,0.00016575,2]
[382656773,1756697455294,-480.0,0.00016575,2]
[382656774,1756697455304,-922.13,0.00016575,2]
[382656775,1756697455314,-775.9,0.00016575,2]
[382656776,1756697455324,-1190.64,0.00016575,2]
[382656777,1756697455333,-480.0,0.00016575,2]
[382656778,1756697455344,-480.0,0.00016575,2]
[382656779,1756697455353,-480.0,0.00016575,2]
[382656780,1756697455363,-480.0,0.00016575,2]
[382656781,1756697455373,-480.0,0.00016575,2]
[382656782,1756697455383,-480.0,0.00016575,2]
[382656783,1756697455393,-480.0,0.00016575,2]
[382656784,1756697455403,-480.0,0.00016575,2]
[382656785,1756697455413,-480.0,0.00016575,2]
[382656786,1756697455424,-480.0,0.00016575,2]
[382656787,1756697455437,-318.72120526,0.00016575,2]
[382656788,1756697455447,-480.0,0.00016575,2]
[382656789,1756697455457,-2110.57,0.00016575,2]
[382656790,1756697455467,-2110.57,0.00016575,2]
[382656791,1756697455478,-2110.57,0.00016575,2]
[382656792,1756697455487,-2110.57,0.00016575,2]
[382656793,1756697455496,-2110.57,0.00016575,2]
[382656794,1756697455507,-2110.80286606,0.00016575,2]
[382656795,1756697455518,-480.0,0.00016575,2]
[382656796,1756697455529,-480.0,0.00016575,2]
[382656797,1756697455539,-557.07,0.00016575,2]
[382656798,1756697455548,-480.0,0.00016575,2]
[382656799,1756697455558,-670.58,0.00016575,2]
[382656800,1756697455569,-480.0,0.00016575,2]
[382656801,1756697455579,-689.65,0.00016575,2]
[382656802,1756697455588,-480.0,0.00016575,2]
[382656803,1756697455598,-480.0,0.00016575,2]
[382656804,1756697455608,-480.0,0.00016575,2]
[382656805,1756697455618,-274.67077006,0.00016575,2]
[382656806,1756697455627,-480.0,0.00016575,2]
[382656807,1756697455636,-997.99,0.00016575,2]
[382656808,1756697455645,-480.0,0.00016575,2]
[382656809,1756697455655,-593.92,0.00016575,2]
[382656810,1756697455664,-513.72,0.00016575,2]
[382656811,1756697455674,-480.0,0.00016575,2]
[382656812,1756697455684,-480.0,0.00016575,2]
[382656813,1756697455694,-480.0,0.00016575,2]
[382656814,1756697455703,-480.0,0.00016575,2]
[382656815,1756697455713,-480.0,0.00016576,2]
[382656816,1756697455723,-697.92,0.00016576,2]
[382656817,1756697455732,-696.43,0.00016576,2]
[382656818,1756697455741,-269.0440339,0.00016576,2]
[382656819,1756697455750,-1018.23,0.00016576,2]
[382656820,1756697455760,-480.0,0.00016576,2]
[382656821,1756697455769,-480.0,0.00016576,2]
[382656822,1756697455779,-480.0,0.00016576,2]
[382656823,1756697455789,-480.0,0.00016576,2]
[382656824,1756697455799,-508.62,0.00016576,2]
[382656825,1756697455809,-695.0,0.00016577,2]
[382656826,1756697455820,-875.52,0.00016577,2]
[382656827,1756697455829,-480.0,0.00016577,2]
[382656828,1756697455839,-480.0,0.00016577,2]
[382656829,1756697455850,-581.91,0.00016577,2]
[382656830,1756697455860,-480.0,0.00016577,2]
[382656831,1756697455869,-1195.6,0.00016577,2]
[382656832,1756697455879,-702.52,0.00016577,2]
[382656833,1756697455891,-160.63280761,0.00016577,2]
[382656834,1756697455901,-494.53,0.00016577,2]
[382656835,1756697455911,-480.0,0.00016577,2]
[382656836,1756697455920,-480.0,0.00016577,2]
[382656837,1756697455930,-480.0,0.00016577,2]
[382656838,1756697456071,-480.0,0.00016577,2]
[382656839,1756697456098,-546.52,0.00016577,2]
[382656840,1756697456108,-304.76388619,0.00016577,2]
[382656841,1756697456118,-480.0,0.00016577,2]
[382656842,1756697456128,-660.22,0.00016577,2]
[382656843,1756697456139,-556.34,0.00016577,2]
[382656844,1756697456149,-480.0,0.00016577,2]
[382656845,1756697456159,-551.46,0.00016577,2]
[382656846,1756697456170,-1542.74328532,0.00016582,2]
[382656847,1756697456180,-151.0,0.00016583,2]
[382656848,1756697456190,-166.26133616,0.00016583,2]
[382656849,1756697456199,-151.0,0.00016583,2]
[382656850,1756697456209,-500.0,0.00016583,2]
[382656851,1756697456218,-151.0,0.00016583,2]
[382656852,1756697456228,-500.0,0.00016583,2]
[382656853,1756697456238,-151.0,0.00016583,2]
[382656854,1756697456247,-358.63839226,0.00016583,2]
[382656855,1756697456258,-1493.0,0.00016583,2]
[382656856,1756697456268,-391.557,0.00016586,2]
[382656857,1756697456277,-5000.0,0.00016588,2]
[382656858,1756697456288,-151.0,0.000166,2]
[382656859,1756697456298,-7630.8386822,0.000166,2]
[382656860,1756697456308,-695.0,0.00016604,2]
[382656861,1756697456319,-589.83123241,0.00016621,2]
[382656862,1756697456329,-1000.0,0.00016621,2]
[382656863,1756697456338,-1000.0,0.00016621,2]
[382656864,1756697456348,-1015.48207357,0.00016621,2]
[382656865,1756697456358,-1000.0,0.00016621,2]
[382656866,1756697456367,-1000.0,0.00016621,2]
[382656867,1756697456377,-1000.0,0.00016621,2]
[382656868,1756697456386,-1000.0,0.00016621,2]
[382656869,1756697456395,-1000.0,0.00016621,2]
[382656870,1756697456404,-1000.0,0.00016621,2]
[382656871,1756697456414,-1016.376904,0.00016621,2]
[382656872,1756697456424,-1000.0,0.00016621,2]
[382656873,1756697456437,-1000.0,0.00016621,2]
[382656874,1756697456446,-1000.0,0.00016621,2]
[382656875,1756697456456,-1000.0,0.00016621,2]
[382656876,1756697456466,-1000.0,0.00016621,2]
[382656877,1756697456475,-262.32124587,0.00016621,2]
[382656878,1756697456485,-695.0,0.00016628,2]
[382656879,1756697456494,-695.0,0.00016646,2]
[382656880,1756697456503,-695.0,0.00016694,2]
[382656881,1756697456513,-151.0,0.000167,2]
[382656882,1756697456523,-5152.0,0.00016725,2]
[382656883,1756697456532,-480.0,0.00016747,2]
[382656884,1756697456541,-756.96,0.00016748,2]
[382656885,1756697456551,-480.0,0.00016748,2]
[382656886,1756697456560,-480.0,0.00016748,2]
[382656887,1756697456570,-480.0,0.00016748,2]
[382656888,1756697456580,-480.0,0.00016748,2]
[382656889,1756697456589,-480.0,0.00016748,2]
[382656890,1756697456599,-502.59,0.00016748,2]
[382656891,1756697456608,-580.85295363,0.00016748,2]
[382656892,1756697456617,-480.0,0.00016748,2]
[382656893,1756697456627,-572.8,0.00016748,2]
[382656894,1756697456636,-480.0,0.00016748,2]
[382656895,1756697456645,-480.0,0.00016748,2]
[382656896,1756697456655,-480.0,0.00016748,2]
[382656897,1756697456664,-480.0,0.00016748,2]
[382656898,1756697456673,-480.0,0.00016748,2]
[382656899,1756697456682,-480.0,0.00016748,2]
[382656900,1756697456691,-482.57,0.00016748,2]
[382656901,1756697456701,-480.0,0.00016748,2]
[382656902,1756697456711,-480.0,0.00016748,2]
[382656903,1756697456720,-480.0,0.00016748,2]
[382656904,1756697456730,-672.37,0.00016748,2]
[382656905,1756697456739,-156.76565963,0.00016748,2]
[382656906,1756697456749,-759.2,0.00016748,2]
[382656907,1756697456759,-1007.97,0.00016748,2]
[382656908,1756697456768,-1071.14,0.00016748,2]
[382656909,1756697456778,-694.25,0.00016748,2]
[382656910,1756697456787,-480.0,0.00016748,2]
[382656911,1756697456796,-480.0,0.00016748,2]
[382656912,1756697456805,-480.0,0.00016748,2]
[382656913,1756697456815,-480.0,0.00016748,2]
[382656914,1756697456825,-480.0,0.00016748,2]
[382656915,1756697456835,-480.0,0.00016748,2]
[382656916,1756697456844,-672.2,0.00016748,2]
[382656917,1756697456853,-480.0,0.00016748,2]
[382656918,1756697456863,-524.85,0.00016748,2]
[382656919,1756697456872,-696.45,0.00016748,2]
[382656920,1756697456881,-799.25,0.00016748,2]
[382656921,1756697456892,-866.89,0.00016748,2]
[382656922,1756697456902,-942.97,0.00016748,2]
[382656923,1756697456912,-480.0,0.00016748,2]
[382656924,1756697456921,-1047.63,0.00016748,2]
[382656925,1756697456930,-480.0,0.00016748,2]
[382656926,1756697456939,-480.0,0.00016748,2]
[382656927,1756697456948,-480.0,0.00016748,2]
[382656928,1756697456958,-897.25,0.00016748,2]
[382656929,1756697456967,-632.66,0.00016748,2]
[382656930,1756697456977,-525.24,0.00016748,2]
[382656931,1756697456986,-480.0,0.00016748,2]
[382656932,1756697456995,-3494.37,0.00016748,2]
[382656933,1756697457006,-571.01,0.00016748,2]
[382656934,1756697457015,-528.72,0.00016748,2]
[382656935,1756697457024,-5308.8,0.00016748,2]
[382656936,1756697457034,-480.0,0.00016748,2]
[382656937,1756697457043,-480.0,0.00016748,2]
[382656938,1756697457053,-558.98692058,0.00016748,2]
[382656939,1756697457062,-916.8,0.00016748,2]
[382656940,1756697457073,-851.27,0.00016748,2]
[382656941,1756697457083,-1018.47,0.00016748,2]
[382656942,1756697457092,-731.93,0.00016748,2]
[382656943,1756697457102,-1441.59,0.00016748,2]
[382656944,1756697457111,-480.0,0.00016748,2]
[382656945,1756697457120,-480.0,0.00016748,2]
[382656946,1756697457130,-480.0,0.00016748,2]
[382656947,1756697457139,-480.0,0.00016748,2]
[382656948,1756697457148,-1201.64,0.00016748,2]
[382656949,1756697457158,-819.62,0.00016748,2]
[382656950,1756697457167,-814.86,0.00016748,2]
[382656951,1756697457176,-674.37,0.00016748,2]
[382656952,1756697457186,-593.51,0.00016748,2]
[382656953,1756697457195,-832.42,0.00016748,2]
[382656954,1756697457204,-480.0,0.00016748,2]
[382656955,1756697457213,-491.63,0.00016748,2]
[382656956,1756697457223,-480.0,0.00016748,2]
[382656957,1756697457232,-480.0,0.00016748,2]
[382656958,1756697457243,-480.0,0.00016748,2]
[382656959,1756697457253,-2257.52,0.00016748,2]
[382656960,1756697457262,-868.4,0.00016748,2]
[382656961,1756697457272,-557.7,0.00016748,2]
[382656962,1756697457281,-508.68,0.00016748,2]
[382656963,1756697457291,-480.0,0.00016748,2]
[382656964,1756697457300,-596.55,0.00016748,2]
[382656965,1756697457310,-480.0,0.00016748,2]
[382656966,1756697457320,-5095.38,0.00016748,2]
[382656967,1756697457329,-480.0,0.00016748,2]
[382656968,1756697457339,-480.0,0.00016748,2]
[382656969,1756697457348,-480.0,0.00016748,2]
[382656970,1756697457358,-5044.54,0.00016748,2]
[382656971,1756697457367,-769.32,0.00016748,2]
[382656972,1756697457377,-480.0,0.00016748,2]
[382656973,1756697457386,-1188.9,0.00016748,2]
[382656974,1756697457396,-2015.06,0.00016748,2]
[382656975,1756697457405,-480.0,0.00016748,2]
[382656976,1756697457415,-2175.63,0.00016748,2]
[382656977,1756697457424,-480.0,0.00016748,2]
[382656978,1756697457438,-480.0,0.00016748,2]
[382656979,1756697457448,-1247.75,0.00016748,2]
[382656980,1756697457457,-561.74,0.00016748,2]
[382656981,1756697457468,-696.36,0.00016748,2]
[382656982,1756697457478,-480.0,0.00016748,2]
[382656983,1756697457487,-480.0,0.00016748,2]
[382656984,1756697457497,-480.0,0.00016748,2]
[382656985,1756697457507,-480.0,0.00016748,2]
[382656986,1756697457518,-480.0,0.00016748,2]
[382656987,1756697457529,-480.0,0.00016748,2]
[382656988,1756697457539,-1886.35,0.00016748,2]
[382656989,1756697457550,-480.0,0.00016748,2]
[382656990,1756697457559,-480.0,0.00016748,2]
[382656991,1756697457570,-722.13,0.00016748,2]
[382656992,1756697457579,-914.71,0.00016748,2]
[382656993,1756697457588,-480.0,0.00016748,2]
[382656994,1756697457598,-480.0,0.00016748,2]
[382656995,1756697457608,-440.63463237,0.00016748,2]
[382656996,1756697457618,-480.0,0.00016748,2]
[382656997,1756697457627,-1215.89,0.00016748,2]
[382656998,1756697457637,-480.0,0.00016748,2]
[382656999,1756697457646,-586.82,0.00016748,2]
[382657000,1756697457656,-480.0,0.00016748,2]
[382657001,1756697457665,-482.36056505,0.00016748,2]
[382657002,1756697457675,-1250.9,0.00016748,2]
[382657003,1756697457684,-480.0,0.00016748,2]
[382657004,1756697457694,-480.0,0.00016748,2]
[382657005,1756697457703,-594.58,0.00016748,2]
[382657006,1756697457713,-480.0,0.00016748,2]
[382657007,1756697457722,-1298.18,0.00016748,2]
[382657008,1756697457732,-698.4,0.00016748,2]
[382657009,1756697457742,-480.0,0.00016748,2]
[382657010,1756697457751,-480.0,0.00016748,2]
[382657011,1756697457761,-797.01,0.00016748,2]
[382657012,1756697457771,-480.0,0.00016748,2]
[382657013,1756697457780,-1470.01,0.00016748,2]
[382657014,1756697457790,-940.96,0.00016748,2]
[382657015,1756697457799,-1122.86,0.00016748,2]
[382657016,1756697457808,-480.0,0.00016748,2]
[382657017,1756697457818,-480.0,0.00016748,2]
[382657018,1756697457827,-689.62,0.00016748,2]
[382657019,1756697457837,-480.0,0.00016748,2]
[382657020,1756697457847,-483.89643777,0.00016748,2]
[382657021,1756697457856,-809.34,0.00016748,2]
[382657022,1756697457865,-480.0,0.00016748,2]
[382657023,1756697457875,-695.0,0.00016749,2]
[382657024,1756697457884,-3000.0,0.00016749,2]
[382657025,1756697457893,-695.0,0.00016749,2]
[382657026,1756697457902,-695.0,0.00016749,2]
[382657027,1756697457912,-695.0,0.00016753,2]
[382657028,1756697457921,-181.0,0.00016766,2]
[382657029,1756697457930,-393.0,0.00016768,2]
[382657030,1756697457939,-3000.0,0.0001678,2]
[382657031,1756697457949,-704.0,0.00016797,2]
[382657032,1756697457958,-151.0,0.000168,2]
[382657033,1756697457969,-85158.33284043,0.000168,2]
[382657034,1756697457979,-480.0,0.00016847,2]
[382657035,1756697457988,-500.0,0.00016848,2]
[382657036,1756697457999,-480.0,0.00016848,2]
[382657037,1756697458009,-480.0,0.00016848,2]
[382657038,1756697458019,-697.49,0.00016848,2]
[382657039,1756697458029,-483.49,0.00016848,2]
[382657040,1756697458039,-480.0,0.00016848,2]
[382657041,1756697458049,-480.0,0.00016848,2]
[382657042,1756697458058,-985.99,0.00016848,2]
[382657043,1756697458068,-480.0,0.00016848,2]
[382657044,1756697458078,-480.0,0.00016848,2]
[382657045,1756697458088,-902.32,0.00016848,2]
[382657046,1756697458097,-1001.45,0.00016848,2]
[382657047,1756697458108,-480.0,0.00016848,2]
[382657048,1756697458117,-965.68,0.00016848,2]
[382657049,1756697458126,-894.88,0.00016848,2]
[382657050,1756697458135,-480.0,0.00016848,2]
[382657051,1756697458145,-480.0,0.00016848,2]
[382657052,1756697458154,-480.0,0.00016848,2]
[382657053,1756697458163,-150.27818524,0.00016848,2]
[382657054,1756697458172,-480.0,0.00016848,2]
[382657055,1756697458182,-871.48,0.00016848,2]
[382657056,1756697458191,-480.0,0.00016848,2]
[382657057,1756697458200,-639.83,0.00016848,2]
[382657058,1756697458209,-982.08,0.00016848,2]
[382657059,1756697458219,-480.0,0.00016848,2]
[382657060,1756697458228,-789.84,0.00016848,2]
[382657061,1756697458237,-480.0,0.00016848,2]
[382657062,1756697458246,-613.6,0.00016848,2]
[382657063,1756697458255,-886.05,0.00016848,2]
[382657064,1756697458264,-3330.76,0.00016848,2]
[382657065,1756697458274,-1190.84,0.00016848,2]
[382657066,1756697458284,-480.0,0.00016848,2]
[382657067,1756697458293,-984.82,0.00016848,2]
[382657068,1756697458303,-480.0,0.00016848,2]
[382657069,1756697458313,-1921.7,0.00016848,2]